Cogmind - Beta 13 @@@ ROGUE MODE // 2024.04.27 @ 19:04:18 Player: Oldman Pu Result: Destroyed by Y-45 Defender with Beam Rifle Performance ------------- Evolutions (0) 0 Regions Visited (2) 400 Robots Destroyed (40) 200 Value Destroyed (694) 694 Prototype IDs (2) 40 Alien Tech Used (0) 0 Bonus (0) 0 TOTAL SCORE: 1334 Bonus ------- None Cogmind --------- Core Integrity 0/250 Matter 275/300 Energy 19/100 System Corruption 1% Temperature Cool (9) Movement Rolling (90) Location -10/Subcaves Parts ------- > --- POWER (1) -------- (None) > --- PROPULSION (2) --- Wheel Compact Wheel > --- UTILITY (2) ------ Large Storage Unit > --- WEAPON (2) ------- Subdweller Laser Assault Rifle > --- INVENTORY (15) --- Ion Engine Ion Engine Subdweller Monowheel Subdweller Monowheel Heat Sink Humpback Light Armor Plating Assault Rifle Assault Rifle Assault Rifle Battle Rifle Peak State ------------ > --- POWER ------------ Subdweller Power Source > --- PROPULSION ------- Compact Wheel Compact Wheel > --- UTILITY ---------- Heat Sink Large Storage Unit > --- WEAPON ----------- Subdweller Laser Subdweller Machine Gun > --- INVENTORY -------- Ion Engine Ion Engine Wheel Compact Wheel Subdweller Monowheel Subdweller Monowheel Heat Sink Light Armor Plating Assault Rifle Assault Rifle Assault Rifle Assault Rifle Battle Rifle [Rating: 11] Favorites ----------- Power Ion Engine Engine Ion Engine Propulsion Aluminum Leg Leg Aluminum Leg Wheel Wheel Utility Large Storage Unit Device Heat Sink Storage Large Storage Unit Protection Light Armor Plating Weapon Beam Cannon Energy Gun Subdweller Laser Energy Cannon Beam Cannon Ballistic Gun Assault Rifle Ballistic Cannon Light Cannon Build | -11 -10 -10 ------- Run | Yrd Mat Sub Slots Evolved . | . . . Power . | . . . Propulsion . | . . . Utility . | . . . Weapon . | . . . Parts Attached 35 | 9 17 9 Power 4 | 1 2 1 Engine 4 | 1 2 1 Core . | . . . Reactor . | . . . Propulsion 15 | 4 6 5 Treads . | . . . Leg 4 | 2 2 . Wheel 11 | 2 4 5 Hover . | . . . Flight . | . . . Utility 5 | 1 4 . Device 2 | . 2 . Storage 2 | 1 1 . Processor . | . . . Hackware . | . . . Protection 1 | . 1 . Artifact . | . . . Weapon 11 | 3 5 3 Energy Gun 2 | 1 . 1 Energy Cannon 2 | . 2 . Ballistic Gun 6 | 2 2 2 Ballistic Cannon 1 | . 1 . Launcher . | . . . Special Weapon . | . . . Impact Weapon . | . . . Slashing Weapon . | . . . Piercing Weapon . | . . . Special Melee Weapon . | . . . Unidentified Prototypes . | . . . Parts Lost 7 | . 1 6 Power 1 | . 1 . Propulsion 2 | . . 2 Utility 1 | . . 1 Weapon 3 | . . 3 Highest Loss Streak 3 | . 1 3 To Critical Strikes . | . . . Average Slot Usage (%) 98 | . 98 98 Engine 13 | . 13 13 Leg 11 | . 15 . Wheel 16 | . 12 27 Device 8 | . 6 14 Storage 14 | . 14 14 Protection 4 | . 6 . Energy Gun 1 | . . 3 Energy Cannon 16 | . 15 19 Ballistic Gun 7 | . 8 4 Ballistic Cannon 2 | . 3 . Naked Turns . | . . . Heaviest Build 34 | 11 34 32 Greatest Support 32 | 20 20 32 Greatest Overweight (x) 10 | 3 1 10 Average Overweight (x) . | . . . Largest Inventory Capacity 15 | 8 15 15 Average Capacity 13 | 6 13 15 Most Carried 15 | 2 15 15 Average Carried 10 | 1 10 14 Final Capacity 15 | 8 15 15 Final Carried 15 | 2 15 12 Class Distribution -------------------- 100% | Mutant Dominant Class ---------------- Mutant | -10/Materials Mutant | -10/Subcaves Resources | -11 -10 -10 ----------- Run | Yrd Mat Sub Matter Collected 757 | 175 463 119 Remotely . | . . . Salvage Created 1223 | . 932 291 Parts 79 | . 64 15 Haulers Intercepted 2 | . 2 . Recyclers Shooed 2 | . 2 . Parts Field Recycled . | . . . Retrieved Matter . | . . . Parts Self-Destructed 12 | . . 12 Prevented . | . . . Kills | -11 -10 -10 ------- Run | Yrd Mat Sub Combat Hostiles Destroyed 22 | . 14 8 Guns 9 | . 4 5 Cannons 13 | . 10 3 Classes Destroyed 9 | . 8 1 Worker 8 | . 8 . Builder 1 | . 1 . Hauler 2 | . 2 . Recycler 2 | . 2 . Operator 3 | . 3 . Watcher 2 | . 2 . Swarmer 9 | . 6 3 Grunt 8 | . 8 . Subdweller 5 | . . 5 Best Kill Streak 6 | . 6 2 Combat Bots Only 3 | . 3 2 Max Kills in Single Turn 2 | . 2 1 Gunslinging . | . . . Exploded . | . . . Melee . | . . . Uniques/NPCs Destroyed . | . . . Combat | -11 -10 -10 -------- Run | Yrd Mat Sub Hostile Shots Fired 128 | . 63 65 Missed 36 | . 18 18 Damage Taken 1262 | . 505 757 Core 257 | . 85 172 Absorbed by Shields . | . . . Core Remaining (%) 100 | 100 . . Volleys Fired 123 | . 73 50 Largest 2 | . 2 2 Hottest 120 | . 120 120 Shots Fired 243 | . 146 97 Gun 109 | . 62 47 Cannon 134 | . 84 50 Launcher . | . . . Special . | . . . Kinetic 101 | . 75 26 Thermal 142 | . 71 71 Explosive . | . . . Electromagnetic . | . . . Robot Hit Streak 32 | . 8 32 Robot Miss Streak 5 | . 5 4 Penetration Max . | . . . Secondary Targets . | . . . Shots Hit Robots 145 | . 78 67 Core Hits 56 | . 40 16 Critical Kills . | . . . Critical Parts Destroyed . | . . . Critical Strikes 1 | . 1 . Blast 1 | . 1 . Melee Attacks . | . . . Impact . | . . . Slashing . | . . . Piercing . | . . . Sneak Attacks . | . . . Combat Hostiles . | . . . Follow-up Attacks . | . . . Damage Inflicted 2196 | . 1238 958 Guns 753 | . 354 399 Cannons 1435 | . 876 559 Explosions . | . . . Melee . | . . . Ramming 8 | . 8 . Kinetic 735 | . 477 258 Thermal 1453 | . 753 700 Explosive . | . . . Electromagnetic . | . . . Impact . | . . . Slashing . | . . . Piercing . | . . . Highest Corruption 1 | . 1 1 Average Corruption 1 | . 1 1 Corruption Purged . | . . . Corruption Blocked . | . . . Effects 4 | . 1 3 Message Errors 1 | . . 1 Matter Fused 2 | . 1 1 Heat Flow Errors 1 | . . 1 Overload Shots . | . . . Overflow Damage 6 | . 6 . Projectiles 6 | . 6 . Explosions . | . . . Melee . | . . . Knockbacks 3 | . 3 . Impact . | . . . Kinetic 3 | . 3 . Secondary . | . . . Self-Inflicted Damage . | . . . Shots . | . . . Rammed . | . . . Targets Rammed 1 | . 1 . Kicked 1 | . 1 . Crushed . | . . . Highest Temperature 243 | . 210 243 Average Temperature 48 | . 47 96 Received Heat Transfer 270 | . 123 147 Siege Activations . | . . . Robots Corrupted . | . . . Combat Hostiles . | . . . Parts Fried . | . . . Impact Corruptions . | . . . Robots Melted . | . . . Combat Hostiles . | . . . Parts Melted 3 | . 1 2 Heat Transferred 2950 | . 1591 1359 Parts Sabotaged . | . . . Parts Stolen . | . . . Parts Stripped . | . . . Power Chain Reactions . | . . . Alert | -11 -10 -10 ------- Run | Yrd Mat Sub Peak Influence 272 | . 272 . Initial . | . . . Average 102 | . 106 . Maximum Alert Level 1 | . 1 . Low Security (%) 86 | 100 86 . Level 1 13 | . 13 . Level 2 . | . . . Level 3 . | . . . Level 4 . | . . . Level 5 . | . . . High Security . | . . . Max Security . | . . . Squads Dispatched 4 | . 4 . Investigation 2 | . 2 . Extermination . | . . . Reinforcement 2 | . 2 . Assault . | . . . Garrison . | . . . Intercept . | . . . Searches Triggered . | . . . Construction Impeded . | . . . Haulers Reinforced . | . . . Active Scanning Responses . | . . . Cargo Convoy Interrupts . | . . . Stealth | -11 -10 -10 --------- Run | Yrd Mat Sub Distress Signals 2 | . 2 . Communications Jammed . | . . . Distress Signals . | . . . Times Spotted 39 | . 29 10 Peak Tracking Total 4 | . 4 3 Tactical Retreats . | . . . Traps | -11 -10 -10 ------- Run | Yrd Mat Sub Traps Triggered 1 | . 1 . Indirectly . | . . . Trap Hack Attempts . | . . . Triggered . | . . . Disarmed . | . . . Reprogrammed . | . . . Reused . | . . . Traps Extracted . | . . . Installed . | . . . Triggered 2 | . . 2 Machines | -11 -10 -10 ---------- Run | Yrd Mat Sub Machines Disabled 2 | . 2 . Max in Single Turn 1 | . 1 . Machines Repaired . | . . . Machines Dismantled . | . . . Machines Sabotaged . | . . . Overloaded Fab Kills . | . . . Hacking | -11 -10 -10 --------- Run | Yrd Mat Sub Machines Accessed 6 | . 6 . Terminals 6 | . 6 . Fabricators . | . . . Repair Stations . | . . . Recycling Units . | . . . Scanalyzers . | . . . Garrison Access . | . . . Total Hacks 17 | . 17 . Successful 10 | . 10 . Failed 7 | . 7 . Catastrophic 1 | . 1 . Database Lockouts . | . . . Manual . | . . . Terminals 17 | . 17 . Fabricators . | . . . Repair Stations . | . . . Recycling Units . | . . . Scanalyzers . | . . . Garrison Access . | . . . Terminal Hacks 10 | . 10 . Record 3 | . 3 . Prototype ID Bank 1 | . 1 . Recycling Unit Index 1 | . 1 . Scanalyzer Index 1 | . 1 . Locate Traps 2 | . 2 . Dispatch Records 1 | . 1 . Registered Components 1 | . 1 . Fabricator Hacks . | . . . Repair Station Hacks . | . . . Recycling Unit Hacks . | . . . Scanalyzer . | . . . Garrison Access Hacks . | . . . Unauthorized Hacks . | . . . Terminals . | . . . Fabricators . | . . . Repair Stations . | . . . Recycling Units . | . . . Scanalyzers . | . . . Garrison Access . | . . . Data Cores Recovered 1 | . 1 . Used 1 | . 1 . Hacking Detections 6 | . 6 . Full Trace Events 2 | . 2 . Feedback Events . | . . . Feedback Blocked . | . . . Robot Schematics Acquired . | . . . Robots Built . | . . . Authchips . | . . . Time . | . . . Total Robot Build Rating . | . . . Part Schematics Acquired . | . . . Parts Built . | . . . Authchips . | . . . Time . | . . . Total Part Build Rating . | . . . Parts Repaired . | . . . Time . | . . . Parts Recycled . | . . . Recycled Matter . | . . . Retrieved Matter . | . . . Retrieved Components . | . . . Parts Scanalyzed . | . . . Part Schematics Acquired . | . . . Parts Damaged . | . . . Bothacking | -11 -10 -10 ------------ Run | Yrd Mat Sub Used RIF Installer . | . . . Robots Hacked . | . . . Non-combat . | . . . Combat . | . . . Robot Hacks Applied . | . . . Relay Couplers Released . | . . . Fabnet Peak Effective % . | . . . Robots Rewired . | . . . Allies Hacked . | . . . Hacks Repelled . | . . . Allies | -11 -10 -10 -------- Run | Yrd Mat Sub Total Allies . | . . . Largest Group . | . . . Highest-Rated Group . | . . . Highest-Rated Ally . | . . . Total Orders . | . . . Ally Attacks . | . . . Total Damage . | . . . Kills . | . . . Allies Corrupted . | . . . Allies Melted . | . . . Intel | -11 -10 -10 ------- Run | Yrd Mat Sub Robot Analysis Total . | . . . Derelict Logs Recovered . | . . . Drone Launches . | . . . Drone Recoveries . | . . . Exploration | -11 -10 -10 ------------- Run | Yrd Mat Sub Turns Passed 2017 | 58 1458 501 Spaces Moved 1290 | 38 926 326 Core 22 | 21 . 1 Treads . | . . . Legs 409 | 17 392 . Wheels 859 | . 534 325 Hover . | . . . Flight . | . . . Fastest Speed 50 | 50 95 95 Average Speed 114 | 111 118 101 Slowest Speed 550 | 200 190 550 Overloaded Moves . | . . . Propulsion Burnouts . | . . . Robots Hopped . | . . . Cave-ins Triggered . | . . . Exploration Rate (%) 42 | 4 100 24 Regions Visited 2 Branch Regions 1 Pre-discovered Areas . | . . . Known Exits Taken . | . . . Unknown Exits Taken 2 | 1 1 . Scrap Searched 4 | . . 4 Spaces Dug . | . . . Terrain Destroyed . | . . . Melee . | . . . Projectile . | . . . AOE . | . . . Terrain Rammed . | . . . Walls Destroyed . | . . . Machines Disabled . | . . . Actions | -11 -10 -10 --------- Run | Yrd Mat Sub Total 1603 | 49 1149 405 Wait 100 | . 96 4 Move 1288 | 37 925 326 Hop . | . . . Pick Up 31 | 2 22 7 Fast Attach 10 | 7 3 . Attach 5 | . . 5 Detach 1 | . 1 . Swap 20 | 2 14 4 Drop 24 | 1 14 9 Fire 123 | . 73 50 Melee . | . . . Ram . | . . . Kick 1 | . 1 . Crush . | . . . Escape Stasis . | . . . Rewire . | . . . Trap . | . . . Miscellaneous . | . . . Route ------- -11/Scrapyard -10/Materials (discovered 6 exits: [*Mat x3] / [*Min x2] / [*Sub]) -10/Subcaves History --------- Turn | Location | Event 31 | -11/Scrapyard | Discovered new exit (range 12) 59 | -11/Scrapyard | Entered Materials 313 | -10/Materials | Build established: Mutant 439 | -10/Materials | Discovered new exit (range 15) 540 | -10/Materials | Discovered new exit (range 14) 863 | -10/Materials | Discovered new exit (range 4) 1044 | -10/Materials | Discovered new exit (range 5) 1094 | -10/Materials | Discovered new exit (range 12) 1356 | -10/Materials | Discovered new exit (range 16) 1517 | -10/Materials | Entered Subcaves 1846 | -10/Subcaves | Core integrity fell below 50% 1904 | -10/Subcaves | Lost 3 parts (3w) 1932 | -10/Subcaves | A swath of the cavern ceiling suddenly collapsed 2000 | -10/Subcaves | Core integrity fell below 20% 2018 | -10/Subcaves | Destroyed by Y-45 Defender with Beam Rifle Last Messages --------------- A swath of the cavern ceiling suddenly collapses. 01957_ HU4KQX0FYSTW&EUH 01964_ S-10 Pest destroyed. 01974_ Com. Wheel destroyed. 01976_ Flight Unit fries itself beyond repair. 01979_ S-10 Pest destroyed. 01983_ Lgt. Assault Rifle fries itself beyond repair. 01983_ Flight Unit fries itself beyond repair. 01984_ Acquired 18 matter. 01985_ Acquired 12 matter. 01987_ Acquired 1 matter. 01988_ Com. Wheel destroyed. 01992_ Lgt. Ion Engine fries itself beyond repair. 01995_ Acquired 10 matter. 01996_ Acquired 1 matter. 01996_ Dropped Broken Sub. Power Source. 01997_ Flight Unit fries itself beyond repair. 02003_ Destroyed Flight Unit. 02003_ S-10 Pest destroyed. 02015_ Heat Sink destroyed. Map ----- +----------------------------------------------------+ | ?????????????????????????????????????????????????? | | ?????????????????????????????????????????????????? | | ?????????????????????????????????????????????????? | | ?????????????????????????????????????????????????? | | ?????????????????????????????????????????????????? | | ?????????????????????????????????????????????????? | | ?????????????????????????????????????????????????? | | ?????????????????????????????????????????????????? | | ?????????????????????????????????????????????????? | | ?????????????????????????????????????????????????? | | ?????????????????????????????????????????????????? | | ?????????????????????????????????????????????????? | | ?????????????????????????????????????????????????? | | ?????????????????????????????????????????????????? | | ???????????#####?????????????????????????????????? | | ??????????## #?????????????????????????????????? | | ??????????##" #####?????????????????????????????? | | ??????????# " ##" #?????????????????????????????? | | #?????????# #" #"####????????????????????????????? | | #????????## #"##" # ###??????????????????????????? | | ##??????## #"""# #"#####???????????????????????? | | #?????## #" ###" """ ;#???????????????????????? | | ####### ""##?#"######;##??????????????????????? | | # ## ###?#"#????##;#????????? $?????????? | | # ## ##?##"???###;#????? #????????? | | ### # #???"?### ;@## ?????????? | | ??## ###### #???#"# Y #????????????????? | | ???####### ##????"#; ### #????????????????? | | ????# # #?????#; #????????????????????? | | ????# #?????# ## [&*##????????????????????? | | ????##### ####?????##? !%##?????????????????????? | | ????????###?????????? !&#??????????????????????? | | ???????????????????? #??????????????????????? | | ???????????????????###### #??????????????????????? | | ????????????????????????# ??????????????????????? | | ????????????????????????? ??????????????????????? | | ?????????????????????????##??????????????????????? | | ?????????????????????????????????????????????????? | | ?????????????????????????????????????????????????? | | ?????????????????????????????????????????????????? | | ?????????????????????????????????????????????????? | | ?????????????????????????????????????????????????? | | ?????????????????????????????????????????????????? | | ?????????????????????????????????????????????????? | | ?????????????????????????????????????????????????? | | ?????????????????????????????????????????????????? | | ?????????????????????????????????????????????????? | | ?????????????????????????????????????????????????? | | ?????????????????????????????????????????????????? | | ?????????????????????????????????????????????????? | +----------------------------------------------------+ Best States ------------- Heat Dissipation 35 Energy Generation 15 Energy Capacity 250 Matter Stores 300 Matter Capacity 300 Sight Range 16 Terrain Scan Density 10 Armor Coverage 150 Evasion (%) 55 Item Schematics ----------------- None Robot Schematics ------------------ None Fabricated ------------ Nothing Alien Tech Used ----------------- None Achievements -------------- None Challenges ------------ None Game ------ Seed CoilDecoyFragment Manual? 0 Play Time 00:21:54 Cumulative 282.7 hours Start 2024.04.27 @ 18:05:39 End 2024.04.27 @ 19:04:18 Sessions 1 Manual Loads 0 Difficulty Rogue Special Mode None Game No. 226 Rogue 214 Adventurer 12 Explorer 0 Win Type - Total 1 Types 1/0/0/0/0/0/0/0/0 Lore% 33 Gallery% 51 Achievement% 37 Wizard Run 0 Options --------- Layout 1 ASCII 0 Keyboard 0 Movement Mouse Keybinds 0 Fullscreen 1 Font 32/SmallcapsGlow Map View 77x35 Zoom Use 0% Tactical HUD 1 Map Filters NONE Filters NONE Steam 1 RUN: 705c4782-59bb-424d-a75d-cfc5377831d0